bitfinex/quotes_BTCUSD_20251016
["timestamp","ask_amount","ask_price","bid_price","bid_amount"]
[1760595713626,0.64979144,111240.0,111230.0,0.22232461]
[1760595713807,0.64979144,111240.0,111230.0,0.1848076]
[1760595714782,1.0344526,111240.0,111230.0,0.1848076]
[1760595714997,0.64979144,111240.0,111230.0,0.1848076]
[1760595715208,1.0344526,111240.0,111230.0,0.1848076]
[1760595716515,0.64979144,111240.0,111230.0,0.1848076]
[1760595716724,1.0344526,111240.0,111230.0,0.1848076]
[1760595717509,0.64979144,111240.0,111230.0,0.1848076]
[1760595719065,4.70774293,111240.0,111230.0,0.005]
[1760595719486,5.20911029,111240.0,111230.0,0.005]
[1760595719680,4.8244698,111240.0,111230.0,0.005]
[1760595719925,4.8437422,111240.0,111230.0,0.005]
[1760595724278,5.0676411,111240.0,111230.0,0.005]
[1760595725696,5.45228159,111240.0,111230.0,0.005]
[1760595726280,5.0676411,111240.0,111230.0,0.005]
[1760595726688,5.45228159,111240.0,111230.0,0.005]
[1760595728776,5.46902789,111240.0,111230.0,0.005]
[1760595728990,5.50149632,111240.0,111230.0,0.005]
[1760595730046,5.50249632,111240.0,111230.0,0.005]
[1760595730661,5.50349632,111240.0,111230.0,0.005]
[1760595731376,5.55044402,111240.0,111230.0,0.005]
[1760595732830,4.78116304,111240.0,111230.0,0.005]
[1760595732983,5.55044402,111240.0,111230.0,0.005]
[1760595733812,5.54775028,111240.0,111230.0,0.005]
[1760595734017,5.18720149,111240.0,111230.0,0.005]
[1760595734530,5.57184198,111240.0,111230.0,0.005]
[1760595734876,5.54775028,111240.0,111230.0,0.005]
[1760595734999,5.57452626,111240.0,111230.0,0.005]
[1760595735204,5.55044402,111240.0,111230.0,0.005]
[1760595735843,5.57183142,111240.0,111230.0,0.005]
[1760595736297,4.80255044,111240.0,111230.0,0.005]
[1760595736523,5.57183142,111240.0,111230.0,0.005]
[1760595737267,5.54775028,111240.0,111230.0,0.005]
[1760595737535,5.34793332,111240.0,111230.0,0.005]
[1760595738218,5.37208847,111240.0,111230.0,0.005]
[1760595740336,4.97576633,111240.0,111230.0,0.005]
[1760595742343,5.31576633,111240.0,111230.0,0.005]
[1760595746122,4.99858186,111230.0,111220.0,0.00155225]
[1760595746336,5.30651494,111230.0,111200.0,0.005]
[1760595746588,4.96243192,111210.0,111200.0,0.005]
[1760595746794,5.21814074,111210.0,111200.0,0.005]
[1760595747004,4.44885976,111210.0,111200.0,0.005]
[1760595747211,4.81675395,111210.0,111200.0,0.005]
[1760595747418,5.22844141,111210.0,111200.0,0.005]
[1760595747631,5.23113518,111210.0,111200.0,0.005]
[1760595747844,5.24786605,111210.0,111200.0,0.005]
[1760595748240,5.24886605,111210.0,111200.0,0.005]
[1760595749126,5.24986605,111210.0,111200.0,0.005]
[1760595749559,5.27395931,111210.0,111200.0,0.005]
[1760595750814,4.50467833,111210.0,111200.0,0.005]
[1760595751023,5.27395931,111210.0,111200.0,0.005]
[1760595752271,5.27395931,111210.0,111200.0,0.00617435]
[1760595753927,4.20836124,111210.0,111200.0,0.00617435]
[1760595754175,4.20836124,111210.0,111200.0,0.18603046]
[1760595754176,0.15904697,111210.0,111200.0,0.18603046]
[1760595754332,0.132,111210.0,111200.0,0.18603046]
[1760595754690,0.65183994,111210.0,111200.0,0.00617435]
[1760595755030,4.70779143,111210.0,111200.0,0.00617435]
[1760595755883,4.72706198,111210.0,111200.0,0.00617435]
[1760595757473,4.75410526,111210.0,111200.0,0.00617435]
[1760595757684,4.73483471,111210.0,111200.0,0.00617435]
[1760595758104,4.75411449,111210.0,111200.0,0.00617435]
[1760595758735,4.84380461,111210.0,111200.0,0.00617435]
[1760595758946,5.2284451,111210.0,111200.0,0.00617435]
[1760595759157,5.2536451,111210.0,111200.0,0.00617435]
[1760595759384,5.2284451,111210.0,111200.0,0.00617435]
[1760595759809,5.24518418,111210.0,111200.0,0.00617435]
[1760595760686,5.24618418,111210.0,111200.0,0.00617435]
[1760595761247,5.24718418,111210.0,111200.0,0.00617435]
[1760595761644,5.27127744,111210.0,111200.0,0.00617435]
[1760595764520,4.88663695,111210.0,111200.0,0.00617435]
[1760595765311,5.27127744,111210.0,111200.0,0.00617435]
[1760595765707,4.88663695,111210.0,111200.0,0.00617435]
[1760595768369,5.27127744,111210.0,111200.0,0.00617435]
[1760595768786,4.48525738,111210.0,111200.0,0.00617435]
[1760595768968,4.46116412,111210.0,111200.0,0.00617435]
[1760595769389,4.84580461,111210.0,111200.0,0.00617435]
[1760595769855,5.25453836,111210.0,111200.0,0.00617435]
[1760595770064,5.27396866,111210.0,111200.0,0.00617435]
[1760595770267,5.31015094,111210.0,111200.0,0.00617435]
[1760595773390,5.34231811,111210.0,111200.0,0.00617435]
[1760595776484,5.55955094,111210.0,111200.0,0.00617435]
[1760595779398,5.56031546,111210.0,111200.0,0.00617435]
[1760595780922,4.79026996,111210.0,111200.0,0.00617435]
[1760595781074,5.56031546,111210.0,111200.0,0.00617435]
[1760595781705,4.75139391,111210.0,111200.0,0.00617435]
[1760595781928,5.09558687,111210.0,111200.0,0.00617435]
[1760595782697,5.1123404,111210.0,111200.0,0.00617435]
[1760595782908,5.52145641,111210.0,111200.0,0.00617435]
[1760595783333,5.52145641,111210.0,111200.0,0.00617435]
[1760595783825,5.55763869,111210.0,111200.0,0.00617435]
[1760595784037,5.56033246,111210.0,111200.0,0.00617435]
[1760595784474,5.60087975,111210.0,111200.0,0.00617435]
[1760595784687,5.9859025,111210.0,111200.0,1e-08]
[1760595784899,4.19319946,111180.0,111170.0,0.005]
[1760595785104,5.19897029,111180.0,111170.0,0.005]
[1760595785315,5.18221486,111180.0,111170.0,0.005]
[1760595785749,5.20926863,111180.0,111170.0,0.005]
[1760595786163,5.2093583,111180.0,111170.0,0.005]
[1760595786380,4.4393128,111180.0,111170.0,0.005]
[1760595786590,5.2093583,111180.0,111170.0,0.005]
[1760595786837,4.4393128,111180.0,111170.0,0.005]
[1760595787065,5.2093583,111180.0,111170.0,0.005]
[1760595788378,5.20911287,111180.0,111170.0,0.005]
[1760595788590,4.82409012,111180.0,111170.0,0.005]
[1760595788799,4.4698656,111180.0,111170.0,0.005]
[1760595789006,4.85488835,111180.0,111170.0,0.005]
[1760595789883,5.23991413,111180.0,111170.0,0.005]
[1760595790557,5.23991413,111180.0,111170.0,0.00676216]
[1760595791008,0.50794167,111180.0,111170.0,0.18666681]
[1760595791219,0.66077636,111180.0,111170.0,0.18666681]
[1760595791436,0.4808879,111180.0,111170.0,0.18666681]
[1760595791870,0.66077636,111180.0,111170.0,0.18666681]
[1760595792097,0.4808879,111180.0,111170.0,0.57168956]
[1760595792954,0.1408879,111180.0,111170.0,0.57168956]
[1760595793683,0.1408879,111180.0,111170.0,0.18666681]
[1760595795123,0.11008967,111180.0,111170.0,0.57168956]
[1760595795351,8.967e-05,111180.0,111170.0,0.57168956]
[1760595796034,8.967e-05,111180.0,111170.0,0.66137968]
[1760595796275,8.967e-05,111180.0,111170.0,1.13608451]
[1760595796941,8.967e-05,111180.0,111170.0,0.75106176]
[1760595797457,8.967e-05,111180.0,111170.0,0.75206176]
[1760595797702,8.967e-05,111180.0,111170.0,0.75106176]
[1760595798189,8.967e-05,111180.0,111170.0,0.75206176]
[1760595798413,8.967e-05,111180.0,111170.0,0.75306176]
[1760595798836,8.967e-05,111180.0,111170.0,0.75206176]
[1760595799061,8.967e-05,111180.0,111170.0,1.13808451]
[1760595799268,8.967e-05,111180.0,111170.0,0.75306176]
[1760595799689,8.967e-05,111180.0,111170.0,1.13808451]
[1760595799896,8.967e-05,111180.0,111170.0,0.75306176]
[1760595801636,8.967e-05,111180.0,111170.0,1.13808451]
[1760595801789,8.967e-05,111180.0,111170.0,0.75306176]
[1760595803314,8.967e-05,111180.0,111170.0,1.13808451]
[1760595803526,8.967e-05,111180.0,111170.0,1.47808451]
[1760595805026,8.967e-05,111180.0,111170.0,1.51426679]
[1760595805256,8.967e-05,111180.0,111170.0,1.89928954]
[1760595805467,8.967e-05,111180.0,111170.0,1.92632717]
[1760595806161,8.967e-05,111180.0,111170.0,1.92532717]
[1760595806379,8.967e-05,111180.0,111170.0,1.92732717]
[1760595807033,8.967e-05,111180.0,111170.0,1.92532717]
[1760595807245,8.967e-05,111180.0,111170.0,1.92732717]
[1760595807468,8.967e-05,111180.0,111170.0,1.92632717]
[1760595807881,8.967e-05,111180.0,111170.0,1.92832717]
[1760595808092,8.967e-05,111180.0,111170.0,1.92632717]
[1760595808309,8.967e-05,111180.0,111170.0,1.92832717]
[1760595808725,8.967e-05,111180.0,111170.0,3.08339542]
[1760595811027,8.967e-05,111180.0,111170.0,3.08139542]
[1760595812375,8.967e-05,111180.0,111170.0,3.08339542]
[1760595813938,0.28183084,111250.0,111170.0,3.08339542]
[1760595813939,0.0717521,111250.0,111240.0,0.17979144]
[1760595814149,0.0717521,111250.0,111240.0,0.49269201]
[1760595814357,0.0717521,111250.0,111240.0,1.0575062]
[1760595814579,0.65070595,111270.0,111240.0,1.0575062]
[1760595814580,0.2656832,111270.0,111250.0,0.17976029]
[1760595814789,0.55710198,111270.0,111260.0,0.17975912]
[1760595815002,0.76774647,111270.0,111260.0,0.17975912]
[1760595815208,0.69599437,111270.0,111260.0,0.17975912]
[1760595815414,0.17625141,111270.0,111260.0,0.17975912]
[1760595816040,0.35599437,111270.0,111260.0,0.17975912]
[1760595817525,0.74101712,111270.0,111260.0,0.17975912]
[1760595818411,0.35599437,111270.0,111250.0,0.65447316]
[1760595818647,0.74101712,111270.0,111250.0,0.65447316]
[1760595819144,0.74101712,111270.0,111250.0,0.26945041]
[1760595819379,0.00234737,111260.0,111250.0,0.26945041]
[1760595819613,0.14234737,111260.0,111250.0,0.26945041]
[1760595822361,0.70712924,111260.0,111250.0,0.17977528]
[1760595822776,0.32210649,111260.0,111240.0,0.18878101]
[1760595822972,0.70478187,111260.0,111240.0,0.27847113]
[1760595823176,0.70478187,111260.0,111250.0,0.17977528]
[1760595824187,0.72398033,111260.0,111250.0,0.17977528]
[1760595824629,0.54422121,111260.0,111250.0,0.17977528]
[1760595824852,0.14,111260.0,111250.0,0.5901455]
[1760595825758,0.14,111260.0,111250.0,0.20512275]
[1760595826413,0.14,111260.0,111250.0,0.56479803]
[1760595826616,0.14,111260.0,111250.0,0.65448815]
[1760595827450,0.91361787,111280.0,111270.0,0.17974296]
[1760595827688,1.05877304,111280.0,111270.0,0.17974296]
[1760595827902,1.05877304,111280.0,111260.0,0.56478187]
[1760595828137,1.05877304,111280.0,111260.0,0.64910547]
[1760595828357,1.05877304,111280.0,111270.0,0.17974296]
[1760595828785,1.05977304,111280.0,111270.0,0.17974296]
[1760595828971,1.05977835,111280.0,111270.0,0.17974296]
[1760595829442,1.05977835,111280.0,111260.0,0.26408272]
[1760595830111,1.05877835,111280.0,111260.0,0.26408272]
[1760595830330,0.69885912,111280.0,111260.0,0.26408272]
[1760595830547,1.08388187,111280.0,111260.0,0.26408272]
[1760595830766,1.08388187,111280.0,111270.0,0.17974296]
[1760595830990,1.11053712,111280.0,111270.0,0.17974296]
[1760595831211,0.55613915,111280.0,111270.0,0.17974296]
[1760595831657,0.55513915,111280.0,111270.0,0.17974296]
[1760595831880,0.73486596,111280.0,111270.0,0.17974296]
[1760595832139,0.73586596,111280.0,111270.0,0.17974296]
[1760595833255,0.73486596,111280.0,111270.0,0.17974296]
[1760595833470,0.55513915,111280.0,111270.0,0.17974296]
[1760595833680,0.55517376,111280.0,111270.0,0.17974296]
[1760595833904,0.55869418,111280.0,111270.0,0.17974296]
[1760595834135,0.55869418,111280.0,111270.0,0.73734067]
[1760595834136,0.16793541,111280.0,111270.0,0.73734067]
[1760595835031,0.19416976,111280.0,111270.0,0.73734067]
[1760595835681,0.19416976,111280.0,111270.0,0.35231792]
[1760595835923,0.16793541,111280.0,111270.0,0.35231792]
[1760595836132,0.16793541,111280.0,111270.0,0.73734067]
[1760595836353,0.15121687,111280.0,111270.0,0.73734067]
[1760595837118,0.16795134,111280.0,111270.0,0.73734067]
[1760595837572,0.19205486,111280.0,111270.0,0.73734067]
[1760595838722,0.19207691,111280.0,111270.0,0.73734067]
[1760595839584,0.19207691,111280.0,111270.0,0.65445583]
[1760595840738,0.19207691,111280.0,111270.0,0.26943308]
[1760595841847,0.19207899,111280.0,111270.0,0.26943308]
[1760595842669,0.20417497,111290.0,111280.0,0.17972681]
[1760595842878,0.32417497,111290.0,111280.0,0.17972681]
[1760595843826,0.14446298,111290.0,111280.0,0.17972681]
[1760595844022,0.14446298,111290.0,111280.0,0.2246428]
[1760595844790,0.32417364,111290.0,111280.0,0.2246428]
[1760595845626,0.32417364,111290.0,111280.0,0.17972681]
[1760595847853,0.32417364,111290.0,111270.0,0.08969012]
[1760595848068,4.23733615,111280.0,111270.0,0.17973945]
[1760595848282,0.20972681,111280.0,111270.0,0.17973945]
[1760595848488,0.03,111280.0,111270.0,0.17973945]
[1760595848694,0.20972681,111280.0,111270.0,0.17973945]
[1760595848920,0.17974296,111270.0,111260.0,0.19029856]
[1760595849137,0.56402515,111280.0,111270.0,0.17974296]
[1760595849360,0.11,111280.0,111270.0,0.17974296]
[1760595849816,0.11,111280.0,111270.0,0.65373142]
[1760595850459,0.11,111280.0,111270.0,0.26943308]
[1760595850675,0.11,111280.0,111270.0,0.69944774]
[1760595851318,0.11,111280.0,111270.0,1.08374608]
[1760595851520,0.00058652,111290.0,111280.0,0.17972681]
[1760595851791,0.05058652,111290.0,111280.0,0.56402515]
[1760595852009,0.05058652,111290.0,111280.0,0.17972681]
[1760595852434,0.05058652,111290.0,111280.0,0.26764427]
[1760595853524,0.05058652,111290.0,111280.0,0.35733439]
[1760595854384,0.00058652,111290.0,111280.0,0.74163273]
[1760595855661,0.00058652,111290.0,111280.0,0.35733439]
[1760595855870,0.00058652,111290.0,111280.0,0.74163273]
[1760595856295,0.00058652,111290.0,111280.0,0.74263273]
[1760595861902,0.00058652,111290.0,111280.0,0.35833439]
[1760595862340,0.00058652,111290.0,111280.0,0.27041693]
[1760595862772,0.18029718,111290.0,111280.0,0.001]
[1760595862982,0.18029718,111290.0,111280.0,0.18072681]
[1760595863196,0.00058652,111290.0,111280.0,0.17972681]
[1760595863653,0.63459552,111290.0,111280.0,0.17972681]
[1760595863871,0.25129718,111290.0,111280.0,0.17972681]
[1760595864312,0.25129718,111290.0,111270.0,0.17974296]
[1760595864514,0.25129718,111290.0,111280.0,0.17972681]
[1760595865155,0.25129718,111290.0,111270.0,0.26943308]
[1760595865373,0.25129718,111290.0,111280.0,0.17972681]
[1760595865590,0.63559552,111290.0,111270.0,0.26943308]
[1760595865813,0.65489719,111290.0,111270.0,0.26943308]
[1760595866034,0.65389719,111290.0,111270.0,0.26943308]
[1760595866273,0.17972681,111280.0,111260.0,0.18773015]
[1760595866486,0.68402515,111280.0,111270.0,0.17974296]
[1760595866719,0.12,111280.0,111270.0,0.17974296]
[1760595867867,0.29972681,111280.0,111270.0,0.17974296]
[1760595868753,0.14404044,111280.0,111270.0,0.17974296]
[1760595869183,0.14404044,111280.0,111260.0,0.27742027]
[1760595869401,0.14404044,111280.0,111260.0,0.36246854]
[1760595869813,0.14404044,111280.0,111270.0,0.17974296]
[1760595873003,0.52833878,111280.0,111270.0,0.17974296]
[1760595873440,0.14404044,111280.0,111270.0,0.17974296]
[1760595876444,0.03,111280.0,111270.0,0.17974296]
[1760595876702,0.20972681,111280.0,111270.0,0.17974296]
[1760595876907,0.03,111280.0,111270.0,0.17974296]
[1760595877275,0.20972681,111280.0,111260.0,0.27113368]
[1760595877749,0.20972681,111280.0,111270.0,0.17974296]
[1760595878395,0.59402515,111280.0,111270.0,0.17974296]
[1760595878612,0.20972681,111280.0,111270.0,0.17974296]
[1760595879526,0.20972681,111280.0,111260.0,0.27113368]
[1760595879739,0.59402515,111280.0,111270.0,0.17974296]
[1760595880168,0.59402515,111280.0,111260.0,0.27113368]
[1760595882122,0.59402515,111280.0,111270.0,0.17974296]
[1760595882555,0.59402515,111280.0,111260.0,0.27113368]
[1760595883824,0.59402515,111280.0,111270.0,0.17974296]
[1760595884442,0.20972681,111280.0,111270.0,0.17974296]
[1760595885524,0.59402515,111280.0,111270.0,0.17974296]
[1760595889441,0.20972681,111280.0,111270.0,0.17974296]
[1760595892475,0.59402515,111280.0,111270.0,0.17974296]
[1760595893251,0.20972681,111280.0,111270.0,0.17974296]
[1760595896557,0.5928847,111290.0,111270.0,0.17974296]
[1760595896781,0.7228847,111290.0,111270.0,0.17974296]
[1760595896979,0.7228847,111290.0,111270.0,0.22483062]
[1760595897181,0.66960108,111290.0,111280.0,0.17972681]
[1760595897369,0.65029743,111290.0,111280.0,0.17972681]
[1760595897566,0.13058652,111290.0,111280.0,0.17972681]
[1760595897791,0.00058652,111290.0,111280.0,0.17972681]
[1760595897991,0.00158652,111290.0,111280.0,0.64291073]
[1760595898199,0.00158652,111290.0,111280.0,0.25861239]
[1760595898598,0.00058652,111290.0,111280.0,0.25861239]
[1760595899021,0.00158652,111290.0,111280.0,0.25861239]
[1760595899680,0.17969605,111300.0,111290.0,0.17971066]
[1760595899885,0.25969605,111300.0,111290.0,0.17971066]
[1760595900464,0.08,111300.0,111290.0,0.17971066]
[1760595901273,0.081,111300.0,111290.0,0.26940078]
[1760595901527,0.001,111300.0,111290.0,0.26940078]
[1760595902055,0.23098715,111310.0,111300.0,0.17969451]
[1760595902253,0.34098715,111310.0,111300.0,0.17969451]
[1760595903127,0.3414862,111310.0,111300.0,0.17969451]
[1760595903897,0.3424862,111310.0,111300.0,0.17969451]
[1760595904500,0.72662663,111310.0,111300.0,0.17969451]
[1760595906708,0.1628073,111310.0,111300.0,0.17969451]
[1760595906916,0.5046622,111320.0,111300.0,0.17969451]
[1760595907077,0.57475186,111320.0,111300.0,0.26391664]
[1760595907507,0.61129329,111320.0,111300.0,0.26391664]
[1760595907793,0.17967837,111310.0,111300.0,0.26391664]
[1760595908010,0.26967837,111310.0,111300.0,0.17969451]
[1760595911425,0.27085116,111310.0,111300.0,0.17969451]
[1760595911628,0.09117279,111310.0,111300.0,0.17969451]
[1760595912528,0.27085116,111310.0,111300.0,0.17969451]
[1760595912958,0.09117279,111310.0,111300.0,0.17969451]
[1760595913383,0.09117279,111310.0,111300.0,0.26391664]
[1760595914045,0.09117279,111310.0,111300.0,0.17969451]
[1760595914933,0.09117279,111310.0,111300.0,0.56383494]
[1760595915369,0.09117279,111310.0,111300.0,0.17969451]
[1760595916298,0.09117279,111310.0,111300.0,0.65352506]
[1760595919920,0.09117279,111310.0,111300.0,1.03766549]
[1760595920142,0.00117279,111310.0,111300.0,1.12734757]
[1760595920625,0.00117279,111310.0,111300.0,0.35906671]
[1760595920862,0.00117279,111310.0,111300.0,1.12734757]
[1760595921318,0.00117279,111310.0,111300.0,0.35906671]
[1760595921574,0.00117279,111310.0,111300.0,1.12734757]
[1760595922439,0.00117279,111310.0,111300.0,1.12834757]
[1760595923545,0.00117279,111310.0,111300.0,1.12934757]
[1760595924695,0.00117279,111310.0,111300.0,1.853488]
[1760595924914,0.00117279,111310.0,111300.0,1.46934757]
[1760595925554,0.00117279,111310.0,111300.0,1.49635638]
[1760595927341,1e-08,111310.0,111300.0,1.91667909]
[1760595935600,0.03003767,111330.0,111320.0,0.17966223]
[1760595935816,0.03003767,111330.0,111320.0,0.68942684]
[1760595936238,0.03121014,111330.0,111320.0,0.68942684]
[1760595936892,0.03121014,111330.0,111320.0,1.07356727]
[1760595937114,0.03121014,111330.0,111320.0,0.68942684]
[1760595940398,0.03121014,111330.0,111320.0,1.07356727]
[1760595945832,0.03121014,111330.0,111320.0,0.30528641]
[1760595946038,0.03121014,111330.0,111320.0,1.07356727]
[1760595946257,0.03121014,111330.0,111320.0,1.1104659]
[1760595946495,0.03121014,111330.0,111320.0,1.07356727]
[1760595947778,0.03121014,111330.0,111320.0,0.30528641]
[1760595947995,0.03121014,111330.0,111320.0,0.68942684]
[1760595948650,0.03121014,111330.0,111320.0,0.26935235]
[1760595948651,0.59499666,111330.0,111320.0,0.26935235]
[1760595948892,0.44302319,111330.0,111320.0,0.17966223]
[1760595949107,0.62266928,111330.0,111320.0,0.17966223]
[1760595949537,0.23852885,111330.0,111310.0,0.5638188]
[1760595949753,0.60337553,111330.0,111320.0,0.17966223]
[1760595949966,0.62149681,111330.0,111310.0,0.47383055]
[1760595950205,0.62149681,111330.0,111310.0,0.26936209]
[1760595950652,0.62149681,111330.0,111320.0,0.17966223]
[1760595950869,0.05771029,111330.0,111320.0,0.17966223]
[1760595951076,0.44185072,111330.0,111320.0,0.17966223]
[1760595951512,0.62149681,111330.0,111320.0,0.17966223]
[1760595952796,0.23735638,111330.0,111320.0,0.17966223]
[1760595953024,0.60220306,111330.0,111320.0,0.17966223]
[1760595953212,0.62149681,111330.0,111320.0,0.17966223]
[1760595953454,0.61311794,111330.0,111320.0,0.17966223]
[1760595953880,0.22897751,111330.0,111320.0,0.17966223]
[1760595954125,0.20968376,111330.0,111320.0,0.17966223]
[1760595954537,0.20968376,111330.0,111310.0,0.65350252]
[1760595954981,0.32968376,111330.0,111310.0,0.65350252]
[1760595955202,0.00058629,111320.0,111310.0,0.65350252]
[1760595957555,0.00058629,111320.0,111310.0,0.26936209]
[1760595958616,0.18024852,111320.0,111310.0,0.17967837]
[1760595958835,0.17967837,111310.0,111290.0,0.1902471]
[1760595959050,0.38414043,111310.0,111300.0,0.17969451]
[1760595959274,0.5638188,111310.0,111300.0,0.17969451]
[1760595959486,0.17967837,111310.0,111300.0,0.17969451]
[1760595960091,3.85298937,111310.0,111300.0,0.17969451]
[1760595960331,0.17967837,111310.0,111300.0,0.17969451]
[1760595960597,3.673311,111310.0,111300.0,0.17969451]
[1760595960816,4.19297323,111320.0,111310.0,0.17967454]
[1760595961041,0.59966223,111320.0,111310.0,0.17967454]
[1760595961257,0.59966223,111320.0,111300.0,0.64826206]
[1760595961463,0.98380266,111320.0,111300.0,0.26412163]
[1760595962124,0.98380266,111320.0,111300.0,0.17969451]
[1760595963041,0.17967837,111310.0,111300.0,0.17969451]
[1760595963234,3.673311,111310.0,111300.0,0.17969451]
[1760595966827,3.50315948,111310.0,111300.0,0.17969451]
[1760595966935,0.90378352,111320.0,111300.0,0.17969451]
[1760595967137,3.50316,111310.0,111300.0,0.22570759]
[1760595967356,0.58568538,111330.0,111310.0,0.17967837]
[1760595967569,0.33968376,111330.0,111320.0,0.17966223]
[1760595967974,0.34026996,111330.0,111320.0,0.17966223]
[1760595969801,0.34126996,111330.0,111320.0,0.17966223]
[1760595970002,0.16162387,111330.0,111320.0,0.17966223]
[1760595970956,0.16162387,111330.0,111320.0,0.21559629]
[1760595971156,0.16162387,111330.0,111320.0,0.59971758]
[1760595971157,0.03162387,111330.0,111320.0,0.59971758]
[1760595971356,0.03162387,111330.0,111320.0,0.6894077]
[1760595971904,0.03162387,111330.0,111320.0,0.30528641]
[1760595972120,0.03062387,111330.0,111320.0,0.30528641]
[1760595981258,0.87583716,111350.0,111330.0,0.17964609]
[1760595981496,0.17963008,111340.0,111320.0,0.30528641]
[1760595981707,0.20963008,111340.0,111320.0,0.30528641]
[1760595982163,0.59375137,111340.0,111320.0,0.30528641]
[1760595982406,0.17964609,111330.0,111320.0,0.21559343]
[1760595982661,0.17964609,111330.0,111320.0,0.17966223]
[1760595982870,0.17964609,111330.0,111310.0,0.17967319]
[1760595983083,0.17964609,111330.0,111310.0,0.08969012]
[1760595983295,0.17966223,111320.0,111310.0,0.17967818]
[1760595983718,0.56376738,111330.0,111310.0,0.17967818]
[1760595983929,0.32665957,111330.0,111310.0,0.17967818]
[1760595984140,0.66665957,111330.0,111320.0,0.17966223]
[1760595986626,0.66665957,111330.0,111310.0,0.21651392]
[1760595986879,0.17966223,111320.0,111310.0,0.17967797]
[1760595987294,0.17966223,111320.0,111310.0,0.17967837]
[1760595987508,0.67378352,111320.0,111300.0,0.19081623]
[1760595987727,0.28966223,111320.0,111300.0,0.19090589]
[1760595988213,0.11,111320.0,111310.0,0.17967837]
[1760595988433,0.17966223,111320.0,111310.0,0.17967837]
[1760595989727,0.17966223,111320.0,111300.0,0.19090589]
[1760595990150,0.17966223,111320.0,111310.0,0.17967837]
[1760595991405,0.68378352,111320.0,111300.0,0.19090589]
[1760595991634,3.68283837,111310.0,111300.0,0.00222666]
[1760595991852,0.17967837,111310.0,111300.0,0.00222666]
[1760595992316,0.18967837,111310.0,111300.0,0.00222666]
[1760595992736,0.18967837,111310.0,111300.0,0.18192117]
[1760595992947,3.50316,111310.0,111300.0,0.18192117]
[1760595993361,3.342045,111310.0,111300.0,0.18192117]
[1760595993597,3.54872392,111320.0,111310.0,0.17967837]
[1760595993801,0.32667892,111320.0,111310.0,0.17967837]
[1760595995451,0.32667892,111320.0,111300.0,0.18192117]
[1760595995658,0.32667892,111320.0,111300.0,0.25739504]
[1760595995867,0.71080021,111320.0,111300.0,0.25739504]
[1760595996101,0.71080021,111320.0,111300.0,0.18192117]
[1760595996524,0.71080021,111320.0,111310.0,0.17967837]
[1760595996945,0.32667892,111320.0,111310.0,0.17967837]
[1760595997605,0.14701669,111320.0,111310.0,0.17967837]
[1760595997829,0.51964777,111330.0,111320.0,0.17966223]
[1760595998043,0.4270156,111330.0,111320.0,0.17966223]
[1760595998705,0.17966223,111320.0,111310.0,0.17967837]
[1760595998920,0.17966223,111320.0,111300.0,0.19090589]
[1760595999139,0.17966223,111320.0,111300.0,0.28059601]
[1760596000010,0.68378352,111320.0,111300.0,0.19090589]
[1760596001457,0.17967837,111310.0,111300.0,0.18192117]
[1760596002911,0.17967837,111310.0,111300.0,0.00222666]
[1760596003266,0.18967837,111310.0,111300.0,0.00222666]
[1760596003940,0.18967837,111310.0,111300.0,0.18192117]
[1760596004774,0.57379966,111310.0,111300.0,0.00222666]
[1760596005208,0.60081859,111310.0,111300.0,0.00222666]
[1760596005423,0.60081859,111310.0,111300.0,0.18192117]
[1760596005848,0.2166973,111310.0,111300.0,0.18192117]
[1760596006465,0.2166973,111310.0,111300.0,0.00222666]
[1760596008127,0.60081859,111310.0,111300.0,0.00222666]
[1760596009810,0.2166973,111310.0,111300.0,0.00222666]
[1760596010023,0.60081859,111310.0,111300.0,0.00222666]
[1760596013899,0.2166973,111310.0,111300.0,0.18192117]
[1760596015084,0.03701893,111310.0,111300.0,0.21808361]
[1760596015728,0.51966223,111320.0,111310.0,0.17967837]
[1760596015936,0.46633181,111320.0,111310.0,0.17967837]
[1760596016136,0.64599404,111320.0,111300.0,0.21808361]
[1760596016953,0.64699404,111320.0,111300.0,0.21808361]
[1760596017166,0.46733181,111320.0,111310.0,0.17967837]
[1760596017290,0.46633181,111320.0,111310.0,0.17967837]
[1760596017497,0.02701786,111320.0,111310.0,0.17967837]
[1760596017704,0.001,111320.0,111310.0,0.17967837]
[1760596018316,0.21564396,111330.0,111310.0,0.17967837]
[1760596018511,0.32564396,111330.0,111310.0,0.17967837]
[1760596018737,0.13701557,111330.0,111320.0,0.17966223]
[1760596019028,0.11,111330.0,111320.0,0.17966223]
[1760596019936,0.11,111330.0,111320.0,0.65347364]
[1760596020160,0.11,111330.0,111320.0,0.26935235]
[1760596020391,0.11,111330.0,111320.0,0.35864939]
[1760596024718,0.11,111330.0,111320.0,0.26935235]
[1760596027636,0.68259869,111330.0,111300.0,0.1819197]
[1760596027887,0.3839703,111320.0,111310.0,0.19764601]
[1760596028111,0.3256417,111330.0,111320.0,0.17966223]
[1760596028112,0.02701331,111330.0,111320.0,0.17966223]
[1760596028356,0.2666594,111330.0,111320.0,0.17966223]
[1760596028575,0.08701331,111330.0,111320.0,0.2063337]
[1760596028786,0.2666594,111330.0,111320.0,0.17966223]
[1760596031614,0.06,111330.0,111320.0,0.56363253]
[1760596033782,0.23964609,111330.0,111320.0,0.17966223]
[1760596034884,0.06,111330.0,111320.0,0.17966223]
[1760596035963,0.06,111330.0,111320.0,0.56363253]
[1760596040505,0.06,111330.0,111320.0,0.56863253]
[1760596040714,0.06,111330.0,111320.0,0.18466223]
[1760596042535,0.4439703,111330.0,111320.0,0.18466223]
[1760596043027,0.62361639,111330.0,111320.0,0.18466223]
[1760596043238,0.62361639,111330.0,111320.0,0.005]
[1760596043677,0.62361639,111330.0,111320.0,0.18466223]
[1760596046159,0.06,111330.0,111320.0,0.2594933]
[1760596046369,0.06,111330.0,111320.0,0.6434636]
[1760596048380,0.5636032,111340.0,111320.0,0.6434636]
[1760596048637,0.6336032,111340.0,111330.0,0.17964609]
[1760596048858,0.6336032,111340.0,111320.0,0.2594933]
[1760596049071,0.6336032,111340.0,111320.0,0.18466223]
[1760596053156,0.07,111340.0,111330.0,0.17964609]
[1760596053578,0.07,111340.0,111330.0,0.56361639]
[1760596053809,0.07,111340.0,111330.0,0.65330651]
[1760596054015,0.28623115,111350.0,111340.0,0.17962996]
[1760596054217,0.11683115,111350.0,111340.0,0.64689391]
[1760596056555,0.04858582,111360.0,111350.0,0.17961383]
[1760596056772,0.34831794,111360.0,111350.0,0.17961383]
[1760596056984,0.15667907,111360.0,111350.0,0.17961383]
[1760596058075,0.15767907,111360.0,111350.0,0.17961383]
[1760596058720,0.15667907,111360.0,111350.0,0.2622646]
[1760596059566,0.15667907,111360.0,111350.0,0.17961383]
[1760596059986,0.15785107,111360.0,111350.0,0.17961383]
[1760596063210,0.12130642,111360.0,111350.0,0.56358413]
[1760596065779,0.12130642,111360.0,111350.0,0.17961383]
[1760596065990,0.12130642,111360.0,111350.0,0.56358413]